bitfinex-derivatives/quotes_ETHF0:USTF0_20250531
["timestamp","ask_amount","ask_price","bid_price","bid_amount"]
[1748654399878,0.6475,2525.1,2524.7,1.3067]
[1748654400376,0.6475,2525.1,2524.9,0.79178]
[1748654400573,0.6475,2525.1,2524.8,0.79182]
[1748654400774,0.79179,2525.0,2524.7,0.79184]
[1748654400976,0.6475,2525.1,2524.9,0.79179]
[1748654401173,1.903,2525.1,2524.9,0.79179]
[1748654401481,1.903,2525.1,2524.6,5.783]
[1748654401682,0.79185,2524.8,2524.6,5.126]
[1748654401883,1.2555,2524.7,2524.6,5.9179]
[1748654402074,1.43926,2525.1,2524.8,0.79182]
[1748654402273,1.2555,2525.0,2524.8,0.79182]
[1748654402471,1.2555,2525.0,2524.6,5.126]
[1748654402976,0.79185,2524.8,2524.6,5.126]
[1748654403177,2.04737,2524.7,2524.6,5.126]
[1748654403477,1.4535,2524.7,2524.6,5.126]
[1748654403681,0.198,2524.7,2524.6,5.9179]
[1748654403975,0.198,2524.7,2524.6,5.126]
[1748654404176,0.198,2524.7,2524.6,5.9179]
[1748654404381,0.98987,2524.7,2524.6,5.126]
[1748654404585,0.198,2524.7,2524.6,5.126]
[1748654404879,0.98987,2524.7,2524.6,5.126]
[1748654405079,2.1142,2524.7,2524.6,5.126]
[1748654405283,2.90607,2524.7,2524.6,5.126]
[1748654405976,2.1142,2524.7,2524.6,5.126]
[1748654406280,0.79193,2524.5,2524.4,0.00593542]
[1748654406473,0.79192,2524.6,2524.4,0.00593542]
[1748654406673,1.271,2524.5,2524.4,0.00593542]
[1748654407081,0.198,2524.7,2524.6,0.7919]
[1748654407583,0.198,2524.7,2524.5,2.79272]
[1748654407777,0.198,2524.7,2524.6,0.7919]
[1748654408178,0.198,2524.7,2524.6,1.4382]
[1748654411489,0.198,2524.7,2524.6,0.6463]
[1748654411689,0.98987,2524.7,2524.6,0.6463]
[1748654411886,0.198,2524.7,2524.5,2.0008]
[1748654412183,0.98988,2524.7,2524.5,1.43253]
[1748654412585,0.198,2524.7,2524.5,0.6406]
[1748654412781,0.198,2524.7,2524.6,0.7919]
[1748654413488,0.198,2524.7,2524.6,2.041]
[1748654414786,1e-05,2524.7,2524.6,7.041]
[1748654416381,1e-05,2524.7,2524.6,2.041]
[1748654416578,1e-05,2524.7,2524.6,1.2491]
[1748654416780,0.7919,2524.7,2524.5,0.6406]
[1748654416981,1.24911,2524.7,2524.4,3.21373542]
[1748654417181,0.79193,2524.5,2524.4,0.00593542]
[1748654417582,1.2491,2524.5,2524.4,0.00593542]
[1748654417886,1.42181,2524.6,2524.4,3.21373542]
[1748654418086,1.879,2524.6,2524.4,0.79789542]
[1748654418285,1.879,2524.6,2524.4,4.00569542]
[1748654418485,1.879,2524.6,2524.4,0.00593542]
[1748654418888,2.67091,2524.6,2524.4,0.00593542]
[1748654419185,0.79193,2524.5,2524.4,0.00593542]
[1748654419393,2.15633,2524.5,2524.4,0.00593542]
[1748654419689,1.3644,2524.5,2524.4,0.00593542]
[1748654420487,2.15633,2524.5,2524.4,0.00593542]
[1748654420686,1.3644,2524.5,2524.4,0.00593542]
[1748654421288,2.15633,2524.5,2524.4,0.00593542]
[1748654422586,0.79206,2524.1,2523.8,0.79213]
[1748654422781,1.9719,2524.0,2523.7,7.12624895]
[1748654423084,2.764,2524.0,2523.7,7.91841895]
[1748654423282,2.764,2524.0,2523.7,3.99997]
[1748654423790,1.9719,2524.0,2523.9,0.79212]
[1748654423991,0.6442,2524.4,2524.0,0.79209]
[1748654424185,0.6442,2524.4,2523.8,1.307]
[1748654424385,1.2905,2524.3,2523.9,0.79212]
[1748654424585,0.79204,2524.2,2523.9,0.79212]
[1748654424891,1.2905,2524.3,2523.8,6.401]
[1748654425090,0.79212,2523.9,2523.8,5.094]
[1748654425488,0.79215,2523.8,2523.7,3.2078]
[1748654425692,1.9619,2523.8,2523.7,3.2078]
[1748654425985,0.79218,2523.7,2523.6,0.00395696]
[1748654426187,2.74748,2523.7,2523.6,0.00395696]
[1748654426388,7.74748,2523.7,2523.6,0.00395696]
[1748654427685,0.79236,2523.2,2522.9,8.3018]
[1748654427885,1.9532,2523.1,2522.9,9.09423]
[1748654428281,1.9532,2523.1,2522.9,8.3018]
[1748654428797,1.9532,2523.1,2522.9,9.09422]
[1748654429087,1.9532,2523.1,2522.9,8.3018]
[1748654429287,1.9532,2523.1,2522.9,9.09422]
[1748654429688,1.9532,2523.1,2523.0,0.7924]
[1748654429890,1.9532,2523.1,2522.9,9.6539]
[1748654430193,1.9532,2523.1,2523.0,0.7924]
[1748654430998,0.7924,2523.0,2522.9,8.3018]
[1748654431194,2.0862,2523.0,2522.9,8.3018]
[1748654431989,1.2938,2523.0,2522.6,3.2078]
[1748654432198,0.6324,2522.9,2522.2,12.60026878]
[1748654432492,0.79258,2522.5,2522.2,13.39290878]
[1748654432693,2.08639,2522.4,2522.2,12.60026878]
[1748654432896,1.2938,2522.4,2522.2,12.60026878]
[1748654433191,0.79262,2522.3,2522.2,12.60026878]
[1748654433391,2.0864,2522.4,2522.2,12.60026878]
[1748654433598,1.2938,2522.4,2521.9,3.2078]
[1748654433986,1.2938,2522.4,2521.9,4.00053]
[1748654434191,0.79263,2522.3,2521.9,3.2078]
[1748654434390,3.2078,2522.5,2521.9,3.2078]
[1748654434391,1.3551,2522.2,2521.9,3.2078]
[1748654434591,2.14777,2522.2,2521.9,3.2078]
[1748654434790,1.3551,2522.2,2521.9,3.2078]
[1748654435192,0.00593542,2522.6,2522.2,0.79264]
[1748654435394,2.14768,2522.5,2522.0,1.9311]
[1748654435590,1.3551,2522.5,2522.0,2.7238]
[1748654435889,1.3551,2522.5,2521.9,3.2078]
[1748654436092,3.2078,2522.1,2521.3,3.2078]
[1748654436297,0.79277,2521.9,2521.3,3.2078]
[1748654436490,1.3551,2521.8,2521.5,0.79286]
[1748654436691,1.3551,2521.8,2521.4,1.2596]
[1748654436987,2.14789,2521.8,2521.4,2.05249]
[1748654437288,1.3551,2521.8,2521.4,1.2596]
[1748654437490,0.6363,2522.0,2521.4,6.3566]
[1748654437788,0.6363,2522.0,2521.8,0.79276]
[1748654437990,0.6363,2522.0,2521.6,4.00062]
[1748654438188,1.3021,2521.9,2521.6,3.2078]
[1748654438386,1.3021,2521.9,2521.7,0.7928]
[1748654438599,0.79267,2522.2,2521.6,3.2078]
[1748654438797,1.3021,2522.3,2521.8,0.79276]
[1748654438998,0.7927,2522.1,2521.8,1.2679]
[1748654439193,1.3021,2522.3,2521.7,0.6692]
[1748654439391,1.3021,2522.3,2521.6,3.2078]
[1748654439694,0.79279,2521.8,2521.6,3.2078]
[1748654439895,1.3021,2521.7,2521.6,3.2078]
[1748654440991,2.09491,2521.7,2521.6,3.2078]
[1748654441192,1.3021,2521.7,2521.3,7.0341]
[1748654441394,0.79289,2521.5,2521.3,7.0341]
[1748654441598,0.7929,2521.4,2521.3,7.0341]
[1748654441793,0.7929,2521.4,2521.3,5.7662]
[1748654441995,0.7929,2521.4,2521.3,5.097]
[1748654442196,0.7929,2521.4,2520.9,0.79304]
[1748654442197,1.98242,2521.3,2520.6,3.2078]
[1748654442394,0.20424731,2521.2,2520.7,0.79311]
[1748654442694,2.13191,2521.1,2520.7,1.3731]
[1748654442897,1.3389,2521.1,2520.9,0.79304]
[1748654443098,1.3389,2521.1,2520.9,4.00084]
[1748654443500,0.20424731,2521.2,2521.1,0.793]
[1748654443705,0.20424731,2521.2,2521.0,2.13211]
[1748654444097,0.20424731,2521.2,2521.0,2.14368292]
[1748654444303,0.20424731,2521.2,2521.1,0.793]
[1748654444706,0.20424731,2521.2,2521.1,6.51617292]
[1748654446606,0.79275,2521.9,2521.1,10.72317292]
[1748654446801,0.79275,2521.9,2521.7,0.79281]
[1748654447198,0.79275,2521.9,2521.6,3.2078]
[1748654447406,1.2698,2522.2,2521.7,2.10539]
[1748654447595,1.27574731,2522.2,2521.7,2.11133731]
[1748654447802,0.79275,2521.9,2521.7,2.11133731]
[1748654448306,1.27574731,2522.2,2521.8,0.79277]
[1748654448603,0.79276,2521.9,2521.7,1.31854731]
[1748654448805,1.27574731,2522.2,2521.7,2.11134731]
[1748654449107,0.7927,2522.1,2521.8,0.79277]
[1748654449301,1.3002,2522.0,2521.9,0.79275]
[1748654449509,1.3002,2522.0,2521.8,0.79275]
[1748654449810,0.79860731,2522.2,2521.9,0.79273]
[1748654450301,2.09880731,2522.2,2521.9,0.80430292]
[1748654450503,1.30614731,2522.2,2522.0,0.7927]
[1748654450707,1.30614731,2522.2,2522.0,0.79269]
[1748654450907,1.30614731,2522.2,2521.9,1.3729]
[1748654451104,0.00594731,2522.2,2522.1,0.79268]
[1748654451509,0.00594731,2522.2,2522.1,0.80425292]
[1748654451908,0.00594731,2522.2,2522.0,0.79269]
[1748654452104,0.79271,2522.0,2521.9,3.2078]
[1748654452309,0.79276,2521.9,2521.7,0.0775007]
[1748654452508,4.00058,2521.8,2521.7,0.0775007]
[1748654452808,0.79298,2521.2,2520.9,3.2078]
[1748654453007,0.79298,2521.2,2520.9,3.21937292]
[1748654453209,0.79298,2521.2,2520.9,4.01243292]
[1748654453409,0.79298,2521.2,2520.9,5.25123292]
[1748654453608,0.79292,2521.4,2521.1,0.79299]
[1748654453812,1.3717,2521.3,2521.1,0.79299]
[1748654454009,0.6243,2521.5,2521.2,0.79297]
[1748654454408,1.41717,2521.5,2521.2,0.79297]
[1748654454607,1.996,2521.5,2521.2,0.79297]
[1748654454816,2.78889,2521.5,2521.1,0.79298]
[1748654455014,2.78889,2521.5,2520.9,4.45817292]
[1748654455616,2.78888,2521.5,2520.9,4.45817292]
[1748654455814,0.79292,2521.4,2521.0,0.79301]
[1748654456112,0.79294,2521.3,2521.0,1.2667]
[1748654456311,0.79294,2521.3,2521.0,1.27827292]
[1748654456809,0.79293,2521.3,2521.0,2.07128292]
[1748654457013,0.79293,2521.3,2521.0,1.27827292]
[1748654457313,2.04132,2521.4,2521.0,2.07129292]
[1748654457513,1.2484,2521.4,2521.0,0.01157292]
[1748654457714,0.79296,2521.3,2521.0,0.01157292]
[1748654457914,1.2484,2521.2,2521.0,0.80459292]
[1748654458416,1.2484,2521.2,2521.1,0.793]
[1748654458611,1.2484,2521.2,2521.0,2.12638292]
[1748654459914,0.79293,2521.3,2521.0,1.33337292]
[1748654460103,0.79297,2521.2,2521.0,1.33337292]
[1748654460512,0.79303,2521.0,2520.9,3.2078]
[1748654460910,1.3576,2521.1,2520.6,3.2078]
[1748654461220,0.79312,2520.7,2520.6,3.2078]
[1748654461521,1.25854731,2520.9,2520.8,0.79309]
[1748654461811,1.98217,2521.6,2520.8,0.79309]
[1748654461812,3.2078,2521.6,2520.8,5.86209]
[1748654462018,3.2078,2521.6,2521.1,3.2078]
[1748654462019,0.79295,2521.3,2521.1,3.2078]
[1748654462208,0.79292,2521.4,2521.1,5.33059]
[1748654462410,1.3229,2521.5,2521.1,5.33059]
[1748654462411,0.79294,2521.3,2521.1,5.34216292]
[1748654462614,0.79292,2521.4,2521.1,4.54917292]
[1748654462821,0.7929,2521.4,2521.1,0.01157292]
[1748654463016,1.3229,2521.3,2521.1,0.01157292]
[1748654463317,0.793,2521.1,2521.0,0.00594731]
[1748654463917,3.85904731,2521.5,2521.0,0.00594731]
[1748654464116,3.85904731,2521.5,2521.0,0.01752023]
[1748654464311,3.85904731,2521.5,2521.0,4.01835023]
[1748654464312,0.79295,2521.3,2521.0,4.01835023]
[1748654464514,3.21374731,2521.5,2521.4,0.7929]
[1748654464718,0.00594731,2521.5,2521.4,4.0007]
[1748654464915,0.00594731,2521.5,2521.4,5.97077292]
[1748654465714,5.53114286,2522.3,2521.4,5.1663]
[1748654465914,0.79282,2521.7,2521.4,5.1663]
[1748654466109,1.3231,2521.9,2521.4,5.1663]
[1748654466622,0.00594731,2521.9,2521.4,5.1663]
[1748654466821,0.00594731,2521.9,2521.8,0.79278]
[1748654467423,0.00594731,2521.9,2521.8,2.72078]
[1748654470226,0.00594731,2521.9,2521.8,1.928]
[1748654470820,0.00594731,2521.9,2521.8,2.72078]
[1748654473020,3.8882,2522.6,2521.9,1.98187]
[1748654473224,2.32334286,2523.1,2521.8,6.928]
[1748654473225,2.32334286,2523.1,2522.9,0.79242]
[1748654473426,2.32334286,2523.1,2522.7,0.79248]
[1748654473637,0.79246,2522.9,2522.6,0.79251]
[1748654473932,1.2638,2523.0,2522.8,0.79244]
[1748654474128,0.79248,2522.8,2522.6,1.27824731]
[1748654474322,0.79248,2522.8,2522.6,0.00594731]
[1748654474523,1.2638,2523.0,2522.6,0.00594731]
[1748654474823,1.2638,2523.0,2522.8,0.79245]
[1748654475030,0.00594731,2523.2,2523.0,0.79239]
[1748654475731,0.00594731,2523.2,2523.0,2.06469]
[1748654476132,0.7924,2523.0,2522.9,3.2078]
[1748654476322,0.79249,2522.7,2522.6,0.00594731]
[1748654477331,0.6714,2522.8,2522.6,0.00594731]
[1748654477530,3.2078,2523.1,2522.6,3.21374731]
[1748654477728,0.67734731,2523.2,2522.9,3.2078]
[1748654477927,0.67734731,2523.2,2522.8,0.79244]
[1748654478224,0.67734731,2523.2,2522.9,3.2078]
[1748654478225,0.79238,2523.1,2522.9,3.2078]
[1748654478432,0.00594731,2523.2,2523.1,0.79237]
[1748654479929,3.2078,2524.2,2523.2,1.98081]
[1748654480132,0.79211,2524.0,2523.7,0.79217]
[1748654480334,0.79214,2523.9,2523.6,9.03798]
[1748654480528,1.42397,2524.1,2523.8,0.79214]
[1748654480734,1.2674,2524.0,2523.6,8.2458]
[1748654481137,2.0595,2524.0,2523.6,9.038]
[1748654481437,1.2674,2524.0,2523.7,0.79218]
[1748654481729,1.2674,2524.0,2523.8,0.79212]
[1748654482035,0.63784731,2524.1,2523.8,0.79212]
[1748654482638,0.79212,2524.0,2523.8,1.3454]
[1748654482839,1.3733,2524.0,2523.7,5.6637]
[1748654483039,0.79226,2523.5,2523.2,3.2078]
[1748654483336,0.79226,2523.5,2523.2,8.2448]
[1748654483536,0.79228,2523.4,2523.2,8.2448]
[1748654483737,0.79226,2523.5,2523.2,9.03714]
[1748654483937,2.051,2523.7,2523.2,8.2448]
[1748654484140,0.79231,2523.3,2523.2,8.2448]
[1748654484438,0.79229,2523.4,2523.2,8.2448]
[1748654484741,1.3733,2523.3,2523.2,8.2448]
[1748654485638,0.6777,2523.7,2523.2,8.2448]
[1748654485938,0.79228,2523.4,2523.2,8.2448]
[1748654486433,0.79225,2523.5,2523.2,8.2448]
[1748654486639,0.79224,2523.5,2523.2,9.03713]
[1748654486839,0.79231,2523.3,2523.2,8.2448]
[1748654487133,0.79231,2523.3,2523.2,5.037]
[1748654487534,0.7924,2523.0,2522.9,3.2078]
[1748654487735,0.79239,2523.1,2522.9,3.2078]
[1748654487930,1.9341,2523.2,2522.9,3.2078]
[1748654488135,0.7924,2523.0,2522.9,3.2078]
[1748654488437,0.79238,2523.1,2522.9,3.2078]
[1748654488746,2.0559,2523.0,2522.9,3.2078]
[1748654489237,0.79246,2522.8,2522.7,5.037]
[1748654492546,0.99056,2522.8,2522.7,5.037]
[1748654492944,0.1981,2522.8,2522.7,5.037]
[1748654493446,0.99056,2522.8,2522.7,5.037]
[1748654494042,0.79249,2522.7,2522.6,0.00594731]
[1748654494347,3.43109,2522.7,2522.6,0.00594731]
[1748654494540,8.43109,2522.7,2522.6,0.00594731]
[1748654498350,3.43109,2522.7,2522.6,0.00594731]
[1748654500953,3.43109,2522.7,2521.8,5.7221]
[1748654500954,0.79274,2522.0,2521.8,5.7221]
[1748654501251,7.6386,2522.7,2521.8,5.7221]
[1748654501252,2.04105,2521.9,2521.8,5.7221]
[1748654501450,1.2483,2521.9,2521.8,5.7221]
[1748654501749,0.79281,2521.7,2521.6,3.21374731]
[1748654503646,0.79281,2521.7,2521.6,0.00594731]
[1748654504152,1.9159,2521.9,2521.6,0.79877731]
[1748654504349,1.9159,2521.9,2521.7,2.06951]
[1748654505046,1.9159,2521.9,2521.7,1.2767]
[1748654505250,2.70865,2521.9,2521.7,1.2767]
[1748654505447,1.9159,2521.9,2521.7,1.2767]
[1748654505647,0.79272,2522.0,2521.7,2.71341]
[1748654505949,0.00594731,2522.1,2522.0,0.79271]
[1748654506153,3.2078,2522.6,2522.5,0.79256]
[1748654506348,0.1981,2522.8,2522.5,0.79254]
[1748654506349,0.99057,2522.8,2522.5,0.79254]
[1748654506550,0.1981,2522.8,2522.3,4.0004]
[1748654506742,0.79254,2522.6,2522.4,2.6076]
[1748654506946,0.99058,2522.8,2522.4,2.6076]
[1748654507144,0.99056,2522.8,2522.7,0.07155339]
[1748654507752,0.1981,2522.8,2522.7,0.07155339]
[1748654508053,0.99056,2522.8,2522.7,0.07155339]
[1748654508955,2.28056,2522.8,2522.7,0.07155339]
[1748654509153,2.28056,2522.8,2522.6,1.3139]
[1748654509455,0.79249,2522.7,2522.6,1.3139]
[1748654509954,2.28057,2522.8,2522.6,1.3139]
[1748654510355,0.79249,2522.7,2522.6,1.3139]
[1748654510863,2.28057,2522.8,2522.6,1.3139]
[1748654511152,0.1981,2522.8,2522.6,1.3139]
[1748654511350,0.1981,2522.8,2522.7,0.79249]
[1748654513551,0.1981,2522.8,2522.6,4.5217]
[1748654513751,0.79839731,2522.9,2522.7,1.3485]
[1748654514056,0.79246,2522.8,2522.7,1.3485]
[1748654514459,0.79839731,2522.9,2522.7,1.3485]
[1748654514760,0.79246,2522.8,2522.7,1.3485]
[1748654516052,0.00594731,2522.9,2522.4,6.3389]
[1748654516251,0.79247,2522.8,2522.5,2.14104]
[1748654516457,0.00594731,2522.9,2522.5,1.3485]
[1748654516756,0.1982,2522.7,2522.5,2.14104]
[1748654516962,0.1982,2522.7,2522.6,0.79253]
[1748654517264,0.1982,2522.7,2522.6,4.00033]
[1748654517560,0.1982,2522.7,2522.6,9.00033]
[1748654519160,0.1982,2522.7,2522.6,4.00033]
[1748654520462,0.99069,2522.7,2522.6,3.2078]
[1748654520961,0.79253,2522.6,2522.5,6.3565]
[1748654521358,0.79259,2522.4,2522.3,3.2078]
[1748654521664,0.79262,2522.3,2522.2,0.07155339]
[1748654522067,0.79271,2522.0,2521.9,3.91844895]
[1748654522264,0.79281,2521.7,2521.5,3.94736221]
[1748654522666,0.79281,2521.7,2521.6,0.00594731]
[1748654523064,0.793,2521.1,2521.0,1.3114]
[1748654523266,0.79306,2520.9,2520.8,5.008]
[1748654523759,1.3135,2521.0,2520.6,4.5277]
[1748654523956,1.3135,2521.0,2520.6,5.32084]
[1748654524156,2.10654,2521.0,2520.6,4.5277]
[1748654524559,0.00594731,2521.1,2520.6,4.5277]
[1748654524763,0.00594731,2521.1,2520.7,1.3199]
[1748654524967,0.79315,2520.6,2520.5,0.00594731]
[1748654525164,3.2078,2520.8,2520.5,0.00594731]
[1748654525364,2.10665,2520.7,2520.5,0.00594731]
[1748654525563,1.3135,2520.7,2520.5,0.00594731]
[1748654525766,0.00594731,2521.1,2520.5,0.00594731]
[1748654525971,0.00594731,2521.1,2520.6,3.2078]
[1748654526261,0.00594731,2521.1,2521.0,0.79303]
[1748654526468,0.00594731,2521.1,2521.0,4.00083]
[1748654526670,0.00594731,2521.1,2521.0,3.2078]
[1748654527671,0.00594731,2521.1,2521.0,4.00083]
[1748654527871,0.00594731,2521.1,2520.8,0.79307]
[1748654528074,0.79306,2521.0,2520.7,4.4561]
[1748654528277,1.3308,2521.0,2520.7,4.4561]
[1748654528973,0.00594731,2521.1,2520.9,0.79306]
[1748654529173,0.79304,2521.0,2520.7,3.2078]
[1748654529485,1.2598,2520.9,2520.7,3.2078]
[1748654529677,1.2598,2520.9,2520.8,0.79309]
[1748654529872,1.2598,2520.9,2520.7,3.2078]
[1748654530177,0.79309,2520.8,2520.5,5.01494731]
[1748654530479,1.2598,2520.7,2520.5,5.01494731]
[1748654530771,2.05293,2520.7,2520.5,5.01494731]
[1748654530972,1.2598,2520.7,2520.5,5.01494731]
[1748654531177,3.2078,2521.0,2520.5,5.01494731]
[1748654531379,1.2598,2520.8,2520.5,5.01494731]
[1748654531573,1.2598,2520.8,2520.5,5.80811731]
[1748654531773,1.2598,2520.8,2520.5,5.01494731]
[1748654532077,1.2598,2520.8,2520.5,5.80811731]
[1748654532274,1.2598,2520.8,2520.5,5.01494731]
[1748654532469,0.79893731,2521.1,2520.7,0.79312]
[1748654532678,2.16393,2521.0,2520.6,5.34924]
[1748654532873,1.3709,2521.0,2520.6,4.5561]
[1748654533073,0.79308,2520.9,2520.6,3.2078]
[1748654533376,2.16401,2520.8,2520.6,3.2078]
[1748654534178,0.79312,2520.7,2520.6,3.2078]
[1748654534373,1.3709,2520.7,2520.5,5.01494731]
[1748654534675,2.16404,2520.7,2520.5,5.01494731]
[1748654535380,0.79315,2520.6,2520.5,0.00594731]
[1748654535677,2.70655,2520.6,2520.5,0.00594731]
[1748654535873,0.79315,2520.7,2520.5,0.00594731]
[1748654536075,0.79315,2520.6,2520.5,0.00594731]
[1748654536475,1.2577,2520.8,2520.5,0.00594731]
[1748654536775,0.66164731,2521.1,2520.6,3.2078]
[1748654537079,1.45465731,2521.1,2520.7,0.7931]
[1748654537384,0.66164731,2521.1,2520.8,0.79308]
[1748654537590,1.45464731,2521.1,2520.7,1.3522]
[1748654537880,0.00594731,2521.1,2520.9,3.2078]
[1748654538077,0.79304,2521.0,2520.7,2.14531]
[1748654538277,1.3188,2521.0,2520.7,1.3522]
[1748654538476,0.79309,2520.8,2520.7,1.3522]
[1748654538683,1.3188,2521.0,2520.6,3.2078]
[1748654538982,0.79311,2520.8,2520.6,3.2078]
[1748654539484,0.79312,2520.7,2520.6,3.2078]
[1748654539783,0.79315,2520.6,2520.5,0.00594731]
[1748654539982,2.11195,2520.6,2520.5,0.00594731]
[1748654542186,3.2078,2520.8,2520.5,0.00594731]
[1748654542380,2.12154,2521.0,2520.7,0.79312]
[1748654542580,0.79311,2520.8,2520.7,0.07155339]
[1748654543285,1.3285,2521.0,2520.7,0.07155339]
[1748654543487,0.79315,2520.6,2520.5,3.21374731]
[1748654543879,0.79315,2520.6,2520.5,0.00594731]
[1748654544477,0.99145,2520.6,2520.5,0.00594731]
[1748654544681,1.519,2520.6,2520.5,0.00594731]
[1748654544892,2.31215,2520.6,2520.5,0.00594731]
[1748654546685,1.519,2520.6,2520.5,0.00594731]
[1748654546893,0.1983,2520.6,2520.5,0.79912731]
[1748654547187,0.1983,2520.6,2520.5,0.00594731]
[1748654547396,0.99145,2520.6,2520.5,0.00594731]
[1748654547785,2.26585,2520.6,2520.5,0.00594731]
[1748654548389,1.4727,2520.6,2520.5,0.00594731]
[1748654548591,2.26585,2520.6,2520.5,0.00594731]
[1748654548892,0.1983,2520.6,2520.5,4.00692731]
[1748654549193,0.1983,2520.6,2520.5,3.21374731]
[1748654549593,0.99145,2520.6,2520.5,0.00594731]
[1748654550795,2.29325,2520.6,2520.5,0.00594731]
[1748654551293,2.91885,2520.6,2520.5,0.00594731]
[1748654552789,2.91885,2520.6,2520.0,5.6506]
[1748654552790,0.79331,2520.1,2520.0,5.6506]
[1748654552989,0.79337,2519.9,2519.6,6.969]
[1748654553185,5.1338,2520.3,2519.6,6.969]
[1748654553392,1.9832,2520.2,2519.5,7.13577429]
[1748654553695,0.79347,2519.6,2519.5,3.92797429]
[1748654553892,3.2078,2519.7,2519.3,0.00594731]
[1748654554096,4.00133,2519.4,2519.3,0.00594731]
[1748654554490,0.79353,2519.4,2519.3,0.00594731]
[1748654555199,2.07863,2519.4,2519.3,0.00594731]
[1748654557099,7.07863,2519.4,2519.3,0.00594731]
[1748654557293,6.2851,2519.4,2518.7,1.3128]
[1748654557493,0.79362,2519.1,2518.7,2.10653]
[1748654557800,4.00141,2519.2,2518.8,1.3022]
[1748654558194,0.79363,2519.1,2518.8,1.3022]
[1748654558404,4.0014,2519.2,2518.8,2.09592]
[1748654558592,3.2078,2519.2,2518.8,1.3022]
[1748654559000,0.79364,2519.1,2518.8,1.3022]
[1748654559195,0.79366,2519.0,2518.8,1.3022]
[1748654559399,0.79367,2519.0,2518.7,0.00594731]
[1748654559610,0.79372,2518.8,2518.7,1.28554731]
[1748654559812,0.79372,2518.8,2518.7,0.00594731]
[1748654560006,0.7937,2518.9,2518.7,0.00594731]
[1748654560212,1.9924,2519.1,2518.7,0.00594731]
[1748654560213,0.79372,2518.8,2518.7,0.00594731]
[1748654560409,1.3197,2518.8,2518.7,0.00594731]
[1748654560610,0.1985,2518.8,2518.7,0.00594731]
[1748654561115,0.99222,2518.8,2518.7,0.00594731]
[1748654561318,2.31192,2518.8,2518.7,0.00594731]
[1748654562511,5.51972,2518.8,2518.7,0.00594731]
[1748654563016,5.51972,2518.8,2518.0,5.668]
[1748654563017,1.98447,2518.6,2518.0,0.687]
[1748654563220,0.79393,2518.2,2518.0,0.687]
[1748654563511,3.2078,2518.1,2517.1,3.2078]
[1748654563715,10.1762,2518.1,2517.1,3.8721]
[1748654563917,0.79399,2518.0,2517.6,0.79408]
[1748654564108,1.99334731,2518.1,2517.7,1.2519]
[1748654564310,0.79409,2517.7,2517.2,0.6641]
[1748654564509,0.79405,2517.8,2517.3,1.2519]
[1748654564705,2.15627,2517.7,2517.3,1.2519]
[1748654564918,2.15627,2517.7,2517.3,2.04608]
[1748654565317,0.7941,2517.6,2517.3,1.2519]
[1748654565520,2.15628,2517.7,2517.3,1.2519]
[1748654565717,1.3622,2517.7,2517.4,0.79415]
[1748654566021,1.3622,2517.7,2517.5,1.2423]
[1748654566214,0.79398,2518.0,2517.6,0.79408]
[1748654566512,0.63114731,2518.1,2517.4,3.2078]
[1748654566513,2.00584731,2518.1,2517.7,1.2423]
[1748654566712,0.79405,2517.8,2517.4,4.00195]
[1748654566912,0.79405,2517.8,2517.5,1.2423]
[1748654567114,0.79402,2517.9,2517.5,2.03642]
[1748654567417,0.794,2518.0,2517.6,0.79407]
[1748654567617,0.79402,2517.9,2517.5,2.03642]
[1748654567818,0.63114731,2518.1,2517.5,1.2423]
[1748654568218,1.2859,2518.0,2517.5,1.2423]
[1748654568420,0.79406,2517.8,2517.5,2.03642]
[1748654568619,0.794,2517.9,2517.5,2.03642]
[1748654568816,0.79404,2517.8,2517.5,1.2423]
[1748654569022,1.9388,2518.0,2517.5,1.2423]
[1748654569221,0.79408,2517.7,2517.5,1.2423]
[1748654569414,1.9388,2518.0,2517.5,1.2423]
[1748654569616,0.79408,2517.7,2517.5,1.2423]
[1748654569822,0.79408,2517.7,2517.5,1.31385339]
[1748654570417,0.79408,2517.7,2517.5,0.07155339]
[1748654570720,0.79405,2517.8,2517.5,0.07155339]
[1748654570919,0.79407,2517.7,2517.5,0.07155339]
[1748654571122,0.79407,2517.7,2517.5,1.41375339]
[1748654571525,1.9388,2518.0,2517.5,1.41375339]
[1748654571723,0.79409,2517.6,2517.5,0.07155339]
[1748654576223,2.14229,2517.6,2517.5,0.07155339]
[1748654576822,0.79409,2517.6,2517.5,0.07155339]
[1748654577726,2.15359,2517.6,2517.5,0.07155339]
[1748654580422,3.8607,2518.0,2517.5,0.07155339]
[1748654580622,1.2871,2517.9,2517.5,0.07155339]
[1748654580827,0.79409,2517.6,2517.5,0.07155339]
[1748654581320,0.79408,2517.7,2517.5,1.33635339]
[1748654581526,1.2871,2517.9,2517.5,1.33635339]
[1748654581527,0.79409,2517.6,2517.5,1.33635339]
[1748654581733,0.79408,2517.7,2517.5,1.33635339]
[1748654582433,0.79409,2517.6,2517.5,1.33635339]
[1748654583233,0.79409,2517.6,2517.5,0.07155339]
[1748654586434,0.99269,2517.6,2517.5,0.07155339]
[1748654586630,0.79422,2517.2,2517.1,1.95177229]
[1748654586831,1.98536,2517.5,2516.3,3.2078]
[1748654586832,5.19336,2517.3,2516.3,3.2078]
[1748654587036,1.9858,2516.9,2516.1,4.955]
[1748654587236,1.98603,2516.6,2516.0,4.514]
[1748654587432,1.9771,2516.5,2516.0,4.514]
[1748654587737,0.79457,2516.1,2516.0,1.3062]
[1748654587935,1.9771,2516.5,2515.8,1.359]
[1748654588139,1.9771,2516.5,2515.8,2.6652]
[1748654588334,3.2078,2516.6,2516.0,3.2078]
[1748654588635,3.2078,2516.9,2516.6,0.79439]